fUST/lending_fUST_20250901
["ID","MTS","AMOUNT","RATE_DAILY","PERIOD"]
[382569846,1756671049847,-794.95,0.00017102,2]
[382569847,1756671049859,-480.0,0.00017102,2]
[382569848,1756671049871,-480.0,0.00017102,2]
[382569849,1756671049882,-480.0,0.00017102,2]
[382569850,1756671049892,-743.62,0.00017102,2]
[382569851,1756671049905,-480.0,0.00017102,2]
[382569852,1756671049915,-861.63,0.00017102,2]
[382569853,1756671049925,-480.0,0.00017102,2]
[382569854,1756671049937,-480.0,0.00017102,2]
[382569855,1756671049950,-480.0,0.00017102,2]
[382569856,1756671049960,-480.0,0.00017102,2]
[382569857,1756671049970,-772.61,0.00017102,2]
[382569858,1756671049980,-1085.76,0.00017102,2]
[382569859,1756671049990,-1063.3,0.00017102,2]
[382569860,1756671050000,-480.0,0.00017102,2]
[382569861,1756671050010,-823.6,0.00017102,2]
[382569862,1756671050021,-862.84,0.00017102,2]
[382569863,1756671050030,-480.0,0.00017102,2]
[382569864,1756671050040,-480.0,0.00017102,2]
[382569865,1756671050050,-480.0,0.00017102,2]
[382569866,1756671050061,-480.0,0.00017102,2]
[382569867,1756671050071,-650.61,0.00017102,2]
[382569868,1756671050082,-836.43,0.00017102,2]
[382569869,1756671050093,-595.65,0.00017102,2]
[382569870,1756671050103,-480.0,0.00017102,2]
[382569871,1756671050113,-480.0,0.00017102,2]
[382569872,1756671050123,-480.0,0.00017102,2]
[382569873,1756671050133,-480.0,0.00017102,2]
[382569874,1756671050142,-634.26,0.00017102,2]
[382569875,1756671050152,-501.49,0.00017102,2]
[382569876,1756671050163,-480.0,0.00017102,2]
[382569877,1756671050174,-788.05,0.00017102,2]
[382569878,1756671050184,-480.0,0.00017102,2]
[382569879,1756671050195,-480.0,0.00017102,2]
[382569880,1756671050205,-541.68,0.00017102,2]
[382569881,1756671050215,-1658.79,0.00017102,2]
[382569882,1756671050226,-843.95,0.00017102,2]
[382569883,1756671050236,-505.2,0.00017102,2]
[382569884,1756671050247,-480.0,0.00017102,2]
[382569885,1756671050257,-480.0,0.00017102,2]
[382569886,1756671050269,-151.0,0.00017103,2]
[382569887,1756671050279,-151.0,0.00017103,2]
[382569888,1756671050289,-151.0,0.00017103,2]
[382569889,1756671050299,-1708.0,0.00017173,2]
[382569890,1756671050310,-151.0,0.000172,2]
[382569891,1756671050323,-151.0,0.000172,2]
[382569892,1756671050334,-151.0,0.000172,2]
[382569893,1756671050349,-151.0,0.00017236,2]
[382569894,1756671050361,-2016.0545378,0.00017236,2]
[382569895,1756671050371,-184.0,0.00017242,2]
[382569896,1756671050381,-151.0,0.00017243,2]
[382569897,1756671050391,-151.0,0.00017243,2]
[382569898,1756671050402,-151.0,0.00017243,2]
[382569899,1756671050412,-279.423575,0.00017243,2]
[382569900,1756671050423,-151.0,0.00017243,2]
[382569901,1756671050433,-151.0,0.00017243,2]
[382569902,1756671050443,-151.0,0.00017243,2]
[382569903,1756671050454,-284.048892,0.00017243,2]
[382569904,1756671050464,-259.411577,0.00017243,2]
[382569905,1756671050474,-192.182341,0.00017243,2]
[382569906,1756671050485,-192.182341,0.00017243,2]
[382569907,1756671050496,-192.182341,0.00017243,2]
[382569908,1756671050507,-192.182341,0.00017243,2]
[382569909,1756671050519,-158.27277284,0.00017245,2]
[382569910,1756671050529,-151.0,0.00017247,2]
[382569911,1756671050540,-151.0,0.00017247,2]
[382569912,1756671050552,-500.0,0.00017247,2]
[382569913,1756671050563,-248.69622921,0.00017247,2]
[382569914,1756671050574,-151.0,0.00017247,2]
[382569915,1756671050585,-500.0,0.00017247,2]
[382569916,1756671050596,-242.19928668,0.00017247,2]
[382569917,1756671050609,-1339.0,0.00017247,2]
[382569918,1756671050619,-198.0,0.00017247,2]
[382569919,1756671050630,-198.0,0.00017247,2]
[382569920,1756671050640,-151.0,0.00017247,2]
[382569921,1756671050650,-500.0,0.00017247,2]
[382569922,1756671050660,-198.0,0.00017247,2]
[382569923,1756671050670,-151.0,0.00017247,2]
[382569924,1756671050680,-151.0,0.00017247,2]
[382569925,1756671050690,-198.0,0.00017247,2]
[382569926,1756671050699,-151.0,0.00017247,2]
[382569927,1756671050710,-151.0,0.00017247,2]
[382569928,1756671050719,-500.0,0.00017247,2]
[382569929,1756671050730,-654.62,0.00017256,2]
[382569930,1756671050740,-184.0,0.00017259,2]
[382569931,1756671050750,-151.0,0.000173,2]
[382569932,1756671050761,-151.0,0.000173,2]
[382569933,1756671050771,-151.0,0.000173,2]
[382569934,1756671050781,-184.0,0.00017308,2]
[382569935,1756671050791,-151.0,0.00017328,2]
[382569936,1756671050801,-151.0,0.00017328,2]
[382569937,1756671050811,-151.0,0.00017328,2]
[382569938,1756671050821,-151.0,0.00017328,2]
[382569939,1756671050831,-184.0,0.00017328,2]
[382569940,1756671050842,-3286.17066841,0.00017346,2]
[382569941,1756671050852,-153.432348,0.00017348,3]
[382569942,1756671050861,-151.0,0.00017365,2]
[382569943,1756671050871,-151.0,0.00017365,2]
[382569944,1756671050882,-151.0,0.00017365,2]
[382569945,1756671050893,-151.0,0.00017365,2]
[382569946,1756671050904,-3334.8,0.00017365,2]
[382569947,1756671050915,-1374.07,0.00017365,2]
[382569948,1756671050927,-480.0,0.00017365,2]
[382569949,1756671050940,-793.23,0.00017365,2]
[382569950,1756671050951,-4616.07,0.00017365,2]
[382569951,1756671050962,-2221.98,0.00017365,2]
[382569952,1756671050972,-480.0,0.00017365,2]
[382569953,1756671050982,-480.0,0.00017366,2]
[382569954,1756671050992,-480.0,0.00017366,2]
[382569955,1756671051162,-480.0,0.00017366,2]
[382569956,1756671051173,-480.0,0.00017366,2]
[382569957,1756671051183,-1055.16,0.00017366,2]
[382569958,1756671051193,-480.0,0.00017366,2]
[382569959,1756671051203,-480.0,0.00017366,2]
[382569960,1756671051213,-1235.0,0.00017366,2]
[382569961,1756671051223,-480.0,0.00017366,2]
[382569962,1756671051233,-480.0,0.00017366,2]
[382569963,1756671051244,-588.93,0.00017366,2]
[382569964,1756671051254,-905.04,0.00017366,2]
[382569965,1756671051264,-480.0,0.00017366,2]
[382569966,1756671051273,-480.0,0.00017366,2]
[382569967,1756671051284,-480.0,0.00017366,2]
[382569968,1756671051294,-480.0,0.00017366,2]
[382569969,1756671051305,-480.0,0.00017366,2]
[382569970,1756671051317,-480.0,0.00017366,2]
[382569971,1756671051327,-480.0,0.00017366,2]
[382569972,1756671051337,-629.68,0.00017366,2]
[382569973,1756671051347,-508.6,0.00017366,2]
[382569974,1756671051357,-480.0,0.00017366,2]
[382569975,1756671051366,-993.71,0.00017366,2]
[382569976,1756671051376,-480.0,0.00017366,2]
[382569977,1756671051385,-480.0,0.00017366,2]
[382569978,1756671051395,-480.0,0.00017366,2]
[382569979,1756671051404,-151.0,0.00017366,2]
[382569980,1756671051413,-151.0,0.00017366,2]
[382569981,1756671051423,-480.0,0.00017366,2]
[382569982,1756671051432,-1236.6,0.00017366,2]
[382569983,1756671051442,-894.15,0.00017366,2]
[382569984,1756671051452,-480.0,0.00017366,2]
[382569985,1756671051462,-539.28,0.00017366,2]
[382569986,1756671051472,-1151.0,0.00017366,2]
[382569987,1756671051481,-480.0,0.00017366,2]
[382569988,1756671051492,-786.13,0.00017366,2]
[382569989,1756671051501,-480.0,0.00017366,2]
[382569990,1756671051511,-620.66,0.00017366,2]
[382569991,1756671051521,-480.0,0.00017366,2]
[382569992,1756671051530,-254.43567061,0.00017366,2]
[382569993,1756671051540,-480.0,0.00017366,2]
[382569994,1756671051550,-151.0,0.00017366,2]
[382569995,1756671051560,-151.0,0.00017366,2]
[382569996,1756671051570,-168.360324,0.00017366,2]
[382569997,1756671051579,-735.1,0.00017366,2]
[382569998,1756671051589,-484.11,0.00017366,2]
[382569999,1756671051599,-599.15,0.00017366,2]
[382570000,1756671051610,-1305.77,0.00017366,2]
[382570001,1756671051620,-1138.9,0.00017366,2]
[382570002,1756671051629,-480.0,0.00017366,2]
[382570003,1756671051639,-480.0,0.00017366,2]
[382570004,1756671051649,-634.14,0.00017366,2]
[382570005,1756671051660,-550.88,0.00017366,2]
[382570006,1756671051669,-480.0,0.00017366,2]
[382570007,1756671051679,-480.0,0.00017366,2]
[382570008,1756671051689,-334.42370012,0.00017366,2]
[382570009,1756671051700,-950.65,0.00017366,2]
[382570010,1756671051709,-692.89,0.00017366,2]
[382570011,1756671051721,-480.0,0.00017366,2]
[382570012,1756671051738,-480.0,0.00017366,2]
[382570013,1756671051748,-480.0,0.00017366,2]
[382570014,1756671051757,-700.59,0.00017366,2]
[382570015,1756671051767,-1018.2,0.00017366,2]
[382570016,1756671051777,-480.0,0.00017366,2]
[382570017,1756671051787,-480.0,0.00017366,2]
[382570018,1756671051796,-480.0,0.00017366,2]
[382570019,1756671051806,-480.0,0.00017366,2]
[382570020,1756671051816,-480.0,0.00017366,2]
[382570021,1756671051826,-480.0,0.00017366,2]
[382570022,1756671051836,-480.0,0.00017366,2]
[382570023,1756671051846,-579.56,0.00017366,2]
[382570024,1756671051856,-480.0,0.00017366,2]
[382570025,1756671051865,-480.0,0.00017366,2]
[382570026,1756671051875,-480.0,0.00017366,2]
[382570027,1756671051885,-302.72998139,0.00017366,2]
[382570028,1756671051895,-480.0,0.00017366,2]
[382570029,1756671051905,-552.93,0.00017366,2]
[382570030,1756671051915,-480.0,0.00017366,2]
[382570031,1756671051925,-497.84,0.00017366,2]
[382570032,1756671051934,-480.0,0.00017366,2]
[382570033,1756671051943,-480.0,0.00017366,2]
[382570034,1756671051953,-480.0,0.00017366,2]
[382570035,1756671051963,-924.93,0.00017366,2]
[382570036,1756671051973,-942.82,0.00017366,2]
[382570037,1756671051983,-524.31,0.00017366,2]
[382570038,1756671051993,-480.0,0.00017366,2]
[382570039,1756671052002,-1191.87,0.00017366,2]
[382570040,1756671052014,-480.0,0.00017366,2]
[382570041,1756671052023,-480.0,0.00017366,2]
[382570042,1756671052033,-480.0,0.00017366,2]
[382570043,1756671052043,-989.96,0.00017366,2]
[382570044,1756671052053,-498.29,0.00017366,2]
[382570045,1756671052063,-480.0,0.00017366,2]
[382570046,1756671052073,-1100.19,0.00017366,2]
[382570047,1756671052083,-875.87,0.00017366,2]
[382570048,1756671052093,-480.0,0.00017366,2]
[382570049,1756671052103,-1101.52,0.00017366,2]
[382570050,1756671052113,-480.0,0.00017366,2]
[382570051,1756671052123,-480.0,0.00017366,2]
[382570052,1756671052133,-962.25,0.00017366,2]
[382570053,1756671052142,-480.0,0.00017366,2]
[382570054,1756671052152,-480.0,0.00017366,2]
[382570055,1756671052162,-782.08,0.00017366,2]
[382570056,1756671052173,-578.47,0.00017366,2]
[382570057,1756671052183,-1150.52,0.00017366,2]
[382570058,1756671052193,-480.0,0.00017366,2]
[382570059,1756671052203,-480.0,0.00017366,2]
[382570060,1756671052212,-151.0,0.00017366,2]
[382570061,1756671052222,-151.0,0.00017366,2]
[382570062,1756671052232,-1194.36,0.00017366,2]
[382570063,1756671052242,-1101.65,0.00017366,2]
[382570064,1756671052253,-480.0,0.00017366,2]
[382570065,1756671052264,-578.50855936,0.00017366,2]
[382570066,1756671052274,-2733.57,0.00017366,2]
[382570067,1756671052284,-480.0,0.00017366,2]
[382570068,1756671052296,-626.94,0.00017366,2]
[382570069,1756671052305,-257.005188,0.00017366,2]
[382570070,1756671052316,-257.005188,0.00017366,2]
[382570071,1756671052326,-257.005188,0.00017366,2]
[382570072,1756671052336,-257.005196,0.00017366,2]
[382570073,1756671052345,-480.0,0.00017366,2]
[382570074,1756671052356,-480.0,0.00017366,2]
[382570075,1756671052366,-2085.34,0.00017366,2]
[382570076,1756671052374,-151.0,0.00017366,2]
[382570077,1756671052384,-151.0,0.00017366,2]
[382570078,1756671052394,-480.0,0.00017366,2]
[382570079,1756671052404,-480.0,0.00017366,2]
[382570080,1756671052414,-151.0,0.00017366,2]
[382570081,1756671052425,-480.0,0.00017366,2]
[382570082,1756671052435,-5338.07,0.00017366,2]
[382570083,1756671052444,-480.0,0.00017366,2]
[382570084,1756671052457,-605.2,0.00017366,2]
[382570085,1756671052469,-1044.89,0.00017366,2]
[382570086,1756671052480,-480.0,0.00017366,2]
[382570087,1756671052490,-1059.73,0.00017366,2]
[382570088,1756671052500,-1778.02,0.00017366,2]
[382570089,1756671052510,-480.0,0.00017366,2]
[382570090,1756671052520,-480.0,0.00017366,2]
[382570091,1756671052529,-480.0,0.00017366,2]
[382570092,1756671052539,-480.0,0.00017366,2]
[382570093,1756671052549,-1028.65,0.00017366,2]
[382570094,1756671052559,-619.53,0.00017366,2]
[382570095,1756671052568,-480.0,0.00017366,2]
[382570096,1756671052581,-519.38947215,0.00017366,2]
[382570097,1756671052590,-480.0,0.00017366,2]
[382570098,1756671052599,-1217.24,0.00017366,2]
[382570099,1756671052608,-480.0,0.00017366,2]
[382570100,1756671052617,-591.02,0.00017366,2]
[382570101,1756671052626,-480.0,0.00017366,2]
[382570102,1756671052635,-596.58,0.00017366,2]
[382570103,1756671052646,-499.41,0.00017366,2]
[382570104,1756671052655,-1252.17,0.00017366,2]
[382570105,1756671052665,-4088.69,0.00017366,2]
[382570106,1756671052675,-705.82,0.00017366,2]
[382570107,1756671052683,-480.0,0.00017366,2]
[382570108,1756671052693,-151.0,0.00017366,2]
[382570109,1756671052702,-480.0,0.00017366,2]
[382570110,1756671052711,-633.58,0.00017366,2]
[382570111,1756671052721,-480.0,0.00017366,2]
[382570112,1756671052730,-480.0,0.00017366,2]
[382570113,1756671052739,-804.74,0.00017366,2]
[382570114,1756671052749,-480.0,0.00017366,2]
[382570115,1756671052758,-151.0,0.00017366,2]
[382570116,1756671052767,-151.0,0.00017366,2]
[382570117,1756671052779,-480.0,0.00017366,2]
[382570118,1756671052789,-480.0,0.00017366,2]
[382570119,1756671052800,-151.0,0.00017366,2]
[382570120,1756671052810,-429.40010289,0.00017366,2]
[382570121,1756671054017,-50.59989711,0.00017366,2]
[382570122,1756671054026,-480.0,0.00017366,2]
[382570123,1756671054035,-480.0,0.00017366,2]
[382570124,1756671054044,-480.0,0.00017366,2]
[382570125,1756671054053,-504.63,0.00017366,2]
[382570126,1756671054062,-192.182341,0.00017366,2]
[382570127,1756671054071,-151.0,0.00017366,2]
[382570128,1756671054079,-480.0,0.00017366,2]
[382570129,1756671054088,-192.182341,0.00017366,2]
[382570130,1756671054097,-893.23,0.00017366,2]
[382570131,1756671054106,-192.182341,0.00017366,2]
[382570132,1756671054114,-192.18233394,0.00017366,2]
[382570133,1756671054123,-282.719668,0.00017367,2]
[382570134,1756671054132,-193.694951,0.00017367,2]
[382570135,1756671054141,-151.0,0.00017367,2]
[382570136,1756671054150,-151.0,0.00017367,2]
[382570137,1756671054159,-151.0,0.00017367,2]
[382570138,1756671054168,-151.0,0.00017367,2]
[382570139,1756671054178,-480.0,0.00017367,2]
[382570140,1756671054187,-1188.69,0.00017367,2]
[382570141,1756671054197,-838.4,0.00017367,2]
[382570142,1756671054205,-151.0,0.00017367,2]
[382570143,1756671054214,-151.0,0.00017367,2]
[382570144,1756671054223,-151.0,0.00017367,2]
[382570145,1756671054232,-1235.25,0.00017367,2]
[382570146,1756671054241,-34.95716737,0.00017367,2]
[382570147,1756671054859,-267.0,0.00016554,2]
[382570148,1756671054887,-213.0,0.00016554,2]
[382570149,1756671054898,-243.4,0.00016708,2]
[382570150,1756671054911,-236.6,0.00016708,2]
[382570151,1756671054921,-151.0,0.00016828,2]
[382570152,1756671054932,-151.0,0.00016828,2]
[382570153,1756671054942,-33.725,0.00017092,2]
[382570154,1756671055607,-151.0,0.00016828,2]
[382570155,1756671055617,-117.275,0.00017092,2]
[382570156,1756671055627,-151.0,0.00017092,2]
[382570157,1756671055636,-151.0,0.00017092,2]
[382570158,1756671055646,-151.0,0.00017092,2]
[382570159,1756671055656,-160.424535,0.00017093,2]
[382570160,1756671055666,-151.0,0.00017093,2]
[382570161,1756671055677,-151.0,0.00017093,2]
[382570162,1756671055687,-151.0,0.00017236,2]
[382570163,1756671055697,-151.0,0.00017236,2]
[382570164,1756671055707,-151.0,0.00017366,2]
[382570165,1756671055716,-569.11283263,0.00017367,2]
[382570166,1756671055725,-480.0,0.00017367,2]
[382570167,1756671055735,-632.88,0.00017367,2]
[382570168,1756671055744,-480.0,0.00017367,2]
[382570169,1756671055754,-480.0,0.00017367,2]
[382570170,1756671055763,-784.94,0.00017367,2]
[382570171,1756671055772,-480.0,0.00017367,2]
[382570172,1756671055782,-678.61,0.00017367,2]
[382570173,1756671055791,-480.0,0.00017367,2]
[382570174,1756671055800,-360.62354022,0.00017367,2]
[382570175,1756671055810,-963.03,0.00017367,2]
[382570176,1756671055819,-794.58,0.00017367,2]
[382570177,1756671055827,-480.0,0.00017367,2]
[382570178,1756671055836,-480.0,0.00017367,2]
[382570179,1756671055845,-160.87923804,0.00017367,2]
[382570180,1756671055860,-319.12076196,0.00017367,2]
[382570181,1756671055870,-901.65,0.00017367,2]
[382570182,1756671055879,-1583.33,0.00017367,2]
[382570183,1756671055889,-480.0,0.00017367,2]
[382570184,1756671055898,-480.0,0.00017367,2]
[382570185,1756671055908,-480.0,0.00017367,2]
[382570186,1756671055919,-652.12,0.00017367,2]
[382570187,1756671055929,-480.0,0.00017367,2]
[382570188,1756671055938,-480.0,0.00017367,2]
[382570189,1756671055948,-480.0,0.00017367,2]
[382570190,1756671055957,-575.16,0.00017367,2]
[382570191,1756671055967,-480.0,0.00017367,2]
[382570192,1756671055976,-480.0,0.00017367,2]
[382570193,1756671055986,-692.11,0.00017369,2]
[382570194,1756671055996,-480.0,0.00017369,2]
[382570195,1756671056006,-500.0,0.00017369,2]
[382570196,1756671056016,-459.92819615,0.00017369,2]
[382570197,1756671056031,-20.07180385,0.00017369,2]
[382570198,1756671056041,-480.0,0.00017369,2]
[382570199,1756671056051,-480.0,0.00017369,2]
[382570200,1756671056060,-480.0,0.00017369,2]
[382570201,1756671056070,-603.95,0.00017369,2]
[382570202,1756671056080,-480.0,0.00017369,2]
[382570203,1756671056090,-480.0,0.00017369,2]
[382570204,1756671056099,-707.41,0.00017369,2]
[382570205,1756671056109,-820.24,0.00017369,2]
[382570206,1756671056120,-480.0,0.00017369,2]
[382570207,1756671056131,-480.0,0.00017369,2]
[382570208,1756671056141,-480.0,0.00017369,2]
[382570209,1756671056150,-513.23,0.00017369,2]
[382570210,1756671056160,-151.0,0.00017369,2]
[382570211,1756671056170,-151.0,0.00017369,2]
[382570212,1756671056179,-480.0,0.00017369,2]
[382570213,1756671056190,-612.43,0.00017369,2]
[382570214,1756671056200,-823.57,0.00017369,2]
[382570215,1756671056209,-480.0,0.00017369,2]
[382570216,1756671056219,-995.41,0.00017369,2]
[382570217,1756671056229,-151.0,0.00017369,2]
[382570218,1756671056238,-151.0,0.00017369,2]
[382570219,1756671056248,-625.51,0.00017369,2]
[382570220,1756671056257,-1293.23,0.00017369,2]
[382570221,1756671056267,-1067.0,0.00017369,2]
[382570222,1756671056278,-480.0,0.00017369,2]
[382570223,1756671056288,-514.59,0.00017369,2]
[382570224,1756671056297,-515.04,0.00017369,2]
[382570225,1756671056308,-725.84,0.00017369,2]
[382570226,1756671056322,-480.0,0.00017369,2]
[382570227,1756671056331,-480.0,0.00017369,2]
[382570228,1756671056341,-486.39,0.00017369,2]
[382570229,1756671056351,-480.0,0.00017369,2]
[382570230,1756671056361,-480.0,0.00017369,2]
[382570231,1756671056370,-480.0,0.00017369,2]
[382570232,1756671056380,-480.0,0.00017369,2]
[382570233,1756671056391,-480.0,0.00017369,2]
[382570234,1756671056401,-568.06,0.00017369,2]
[382570235,1756671056410,-480.0,0.00017369,2]
[382570236,1756671056420,-581.43,0.00017369,2]
[382570237,1756671056431,-480.0,0.00017369,2]
[382570238,1756671056440,-652.14,0.00017369,2]
[382570239,1756671056450,-548.02,0.00017369,2]
[382570240,1756671056461,-480.0,0.00017375,2]
[382570241,1756671056471,-480.0,0.00017375,2]
[382570242,1756671056482,-893.93,0.00017375,2]
[382570243,1756671056491,-1051.96,0.00017375,2]
[382570244,1756671056501,-480.0,0.00017375,2]
[382570245,1756671056511,-500.0,0.00017376,2]
[382570246,1756671056521,-480.0,0.00017376,2]
[382570247,1756671056531,-903.33,0.00017376,2]
[382570248,1756671056541,-480.0,0.00017376,2]
[382570249,1756671056552,-548.32141208,0.00017376,2]
[382570250,1756671056564,-482.0,0.00017376,2]
[382570251,1756671056575,-480.0,0.00017376,2]
[382570252,1756671056585,-153.432348,0.00017376,10]
[382570253,1756671056595,-480.0,0.00017376,2]
[382570254,1756671056605,-480.0,0.00017376,2]
[382570255,1756671056615,-576.2,0.00017376,2]
[382570256,1756671056626,-480.0,0.00017376,2]
[382570257,1756671056636,-1328.69,0.00017376,2]
[382570258,1756671056645,-190.61,0.00017376,2]
[382570259,1756671056655,-480.0,0.00017376,2]
[382570260,1756671056665,-480.0,0.00017376,2]
[382570261,1756671056675,-486.61,0.00017376,2]
[382570262,1756671056685,-480.0,0.00017376,2]
[382570263,1756671056694,-480.0,0.00017376,2]
[382570264,1756671056704,-621.93,0.00017376,2]
[382570265,1756671056714,-716.06,0.00017376,2]
[382570266,1756671056724,-668.92,0.00017376,2]
[382570267,1756671056733,-933.79,0.00017376,2]
[382570268,1756671056743,-480.0,0.00017376,2]
[382570269,1756671056752,-994.72,0.00017376,2]
[382570270,1756671056761,-649.19,0.00017376,2]
[382570271,1756671056771,-742.31,0.00017376,2]
[382570272,1756671056780,-480.0,0.00017376,2]
[382570273,1756671056790,-480.0,0.00017376,2]
[382570274,1756671056799,-480.0,0.00017376,2]
[382570275,1756671056809,-480.0,0.00017376,2]
[382570276,1756671056818,-1478.23,0.00017376,2]
[382570277,1756671056828,-480.0,0.00017376,2]
[382570278,1756671056838,-480.0,0.00017376,2]
[382570279,1756671056847,-480.0,0.00017376,2]
[382570280,1756671056857,-480.0,0.00017376,2]
[382570281,1756671056866,-788.99,0.00017376,2]
[382570282,1756671056876,-528.44,0.00017376,2]
[382570283,1756671056888,-657.92,0.00017376,2]
[382570284,1756671056897,-480.0,0.00017376,2]
[382570285,1756671056907,-480.0,0.00017376,2]
[382570286,1756671056916,-480.0,0.00017376,2]
[382570287,1756671056926,-1131.2,0.00017376,2]
[382570288,1756671056935,-596.78,0.00017376,2]
[382570289,1756671056944,-480.0,0.00017376,2]
[382570290,1756671056954,-480.0,0.00017376,2]
[382570291,1756671056963,-865.32,0.00017376,2]
[382570292,1756671056972,-480.0,0.00017376,2]
[382570293,1756671056981,-603.5,0.00017376,2]
[382570294,1756671056991,-480.0,0.00017376,2]
[382570295,1756671057000,-480.0,0.00017376,2]
[382570296,1756671057010,-480.0,0.00017376,2]
[382570297,1756671057019,-890.22,0.00017376,2]
[382570298,1756671057030,-480.0,0.00017376,2]
[382570299,1756671057039,-1858.6,0.00017376,2]
[382570300,1756671057049,-480.0,0.00017376,2]
[382570301,1756671057058,-794.95,0.00017376,2]
[382570302,1756671057067,-480.0,0.00017376,2]
[382570303,1756671057077,-480.0,0.00017376,2]
[382570304,1756671057086,-480.0,0.00017376,2]
[382570305,1756671057096,-743.62,0.00017376,2]
[382570306,1756671057106,-480.0,0.00017376,2]
[382570307,1756671057115,-861.63,0.00017376,2]
[382570308,1756671057124,-480.0,0.00017376,2]
[382570309,1756671057134,-480.0,0.00017376,2]
[382570310,1756671057143,-480.0,0.00017376,2]
[382570311,1756671057153,-480.0,0.00017376,2]
[382570312,1756671057164,-772.61,0.00017376,2]
[382570313,1756671057176,-1085.76,0.00017376,2]
[382570314,1756671057187,-1063.3,0.00017376,2]
[382570315,1756671057197,-480.0,0.00017376,2]
[382570316,1756671057207,-705.92036959,0.00017376,2]
[382570317,1756671057231,-117.67963041,0.00017376,2]
[382570318,1756671057241,-862.84,0.00017376,2]
[382570319,1756671057250,-480.0,0.00017376,2]
[382570320,1756671057260,-480.0,0.00017376,2]
[382570321,1756671057271,-480.0,0.00017376,2]
[382570322,1756671057281,-480.0,0.00017376,2]
[382570323,1756671057291,-650.61,0.00017376,2]
[382570324,1756671057301,-836.43,0.00017376,2]
[382570325,1756671057311,-595.65,0.00017376,2]
[382570326,1756671057321,-530.78323128,0.00017376,2]
[382570327,1756671057330,-480.0,0.00017376,2]
[382570328,1756671057344,-480.0,0.00017376,2]
[382570329,1756671057354,-480.0,0.00017376,2]
[382570330,1756671057363,-634.26,0.00017376,2]
[382570331,1756671057373,-501.49,0.00017376,2]
[382570332,1756671057383,-480.0,0.00017376,2]
[382570333,1756671057393,-788.05,0.00017376,2]
[382570334,1756671057402,-480.0,0.00017376,2]
[382570335,1756671057415,-480.0,0.00017376,2]
[382570336,1756671057426,-541.68,0.00017376,2]
[382570337,1756671057437,-1658.79,0.00017376,2]
[382570338,1756671057448,-843.95,0.00017376,2]
[382570339,1756671057460,-505.2,0.00017376,2]
[382570340,1756671057470,-480.0,0.00017376,2]
[382570341,1756671057480,-480.0,0.00017376,2]
[382570342,1756671057491,-184.0,0.00017377,2]
[382570343,1756671057502,-151.0,0.000174,2]
[382570344,1756671057513,-151.0,0.000174,2]
[382570345,1756671057523,-151.0,0.000174,2]